bitfinex/quotes_SOLUSD_20260304
["timestamp","ask_amount","ask_price","bid_price","bid_amount"]
[1772633976540,15.39047727,90.198,90.156,4.35456072]
[1772633977654,4.30375695,90.207,90.158,4.35456072]
[1772633978249,11.0854913,90.208,90.158,4.35456072]
[1772633978451,49.14937909,90.244,90.16,4.35456072]
[1772633978452,4.30375695,90.229,90.16,4.35456072]
[1772633978645,4.30375695,90.228,90.16,4.35456072]
[1772633979745,4.30375695,90.209,90.162,4.35456072]
[1772633979948,4.30375695,90.199,90.156,11.09181062]
[1772633980154,4.30375695,90.199,90.157,4.35456072]
[1772633980768,9.64929456,90.19,90.147,4.35456072]
[1772633980935,4.30375695,90.189,90.147,4.35456072]
[1772633982060,4.30375695,90.189,90.148,11.0928695]
[1772633982061,11.08794961,90.188,90.148,11.0928695]
[1772633982262,4.30375695,90.187,90.148,11.0928695]
[1772633982558,4.30375695,90.187,90.147,4.35456072]
[1772633982762,4.30375695,90.187,90.128,27.73811909]
[1772633982763,4.30375695,90.159,90.085,4.35456072]
[1772633983150,4.30375695,90.159,90.089,4.35456072]
[1772633983644,4.30375695,90.159,90.091,4.35456072]
[1772633983840,4.30375695,90.157,90.093,4.35456072]
[1772633984756,11.09163912,90.158,90.101,4.35456072]
[1772633984953,11.09163912,90.158,90.092,94.34799981]
[1772633984954,4.30375695,90.157,90.111,4.35456072]
[1772633985272,4.30375695,90.149,90.111,4.35456072]
[1772633985667,4.30375695,90.149,90.093,4.35456072]
[1772633985849,4.30375695,90.147,90.095,4.35456072]
[1772633986412,4.30375695,90.139,90.095,4.35456072]
[1772633987952,4.30375695,90.137,90.095,4.35456072]
[1772633988167,38.82935054,90.138,90.095,4.35456072]
[1772633988168,11.09410015,90.138,90.095,4.35456072]
[1772633988377,4.07624795,90.137,90.097,4.44694437]
[1772633989552,11.09410015,90.138,90.097,4.44694437]
[1772633989975,4.07624795,90.149,90.063,88.8260927]
[1772633989976,11.0928695,90.148,90.101,4.24745737]
[1772633990186,4.42578824,90.155,90.111,4.24745737]
[1772633990385,4.42578824,90.155,90.064,1.11032154]
[1772633990386,4.42578824,90.139,90.089,4.24745737]
[1772633990561,4.42578824,90.129,90.089,4.24745737]
[1772633991184,4.71011138,90.149,90.089,4.24745737]
[1772633991367,4.42578824,90.139,90.089,4.24745737]
[1772633992262,4.42578824,90.137,90.091,4.24745737]
[1772633992665,38.82935054,90.138,90.091,4.24745737]
[1772633992866,43.25513878,90.138,90.091,4.24745737]
[1772633993060,11.09410015,90.138,90.093,4.24745737]
[1772633993265,4.42578824,90.137,90.095,4.24745737]
[1772633994264,4.42578824,90.135,90.095,4.24745737]
[1772633994665,4.42578824,90.135,90.09,11.1000111]
[1772633994882,4.42578824,90.135,90.039,4.82477569]
[1772633994883,4.42578824,90.119,90.068,4.38961894]
[1772633995063,4.42578824,90.119,90.068,4.24745737]
[1772633995583,4.42578824,90.119,90.069,4.24745737]
[1772633996282,4.42550814,90.128,90.073,4.10554976]
[1772633996880,4.42550814,90.119,90.073,4.10554976]
[1772633997462,4.42550814,90.128,90.073,4.10554976]
[1772633998469,4.42550814,90.126,90.075,4.10554976]
[1772633998891,38.83408967,90.127,90.075,4.10554976]
[1772633999069,11.09545419,90.127,90.081,4.10554976]
[1772633999371,4.42550814,90.146,90.091,4.10554976]
[1772634000588,4.42550814,90.146,90.074,38.85693984]
[1772634000589,11.09176214,90.157,90.107,4.10554976]
[1772634000767,11.09176214,90.157,90.092,39.13349953]
[1772634000768,11.09176214,90.157,90.111,4.10554976]
[1772634000969,38.82116751,90.157,90.111,4.10554976]
[1772634001180,4.45566968,90.156,90.111,4.10554976]
[1772634001384,4.45566968,90.149,90.093,4.2821827]
[1772634002269,4.45566968,90.149,90.092,11.09976468]
[1772634002474,94.27997825,90.157,90.083,4.2821827]
[1772634002475,4.45566968,90.127,90.083,4.2821827]
[1772634003384,11.09533108,90.128,90.083,4.2821827]
[1772634003768,38.83365879,90.128,90.083,4.2821827]
[1772634004174,11.09533108,90.128,90.083,4.2821827]
[1772634004580,11.09533108,90.128,90.064,3.69383402]
[1772634004581,4.45566968,90.159,90.085,4.2821827]
[1772634004782,4.45566968,90.159,90.091,4.2821827]
[1772634004977,4.41162555,90.149,90.091,4.2821827]
[1772634005173,4.41162555,90.139,90.091,4.2821827]
[1772634005583,4.41162555,90.139,90.084,38.85262643]
[1772634005584,4.41162555,90.129,90.084,11.10075041]
[1772634005989,4.41162555,90.129,90.084,15.53628408]
[1772634006295,4.41162555,90.129,90.085,4.43553367]
[1772634006792,192.67750604,90.16,90.012,44.43851342]
[1772634006793,4.41162555,90.089,90.03,4.43553367]
[1772634006996,4.41162555,90.099,90.038,4.43553367]
[1772634007184,4.41162555,90.099,90.04,4.43553367]
[1772634007691,4.41162555,90.089,90.04,4.43553367]
[1772634008095,9.66952027,90.07,90.026,4.43553367]
[1772634008393,9.66952027,90.06,90.026,4.43553367]
[1772634008593,4.41162555,90.067,90.026,4.43553367]
[1772634009090,4.41162555,90.067,90.024,11.10810099]
[1772634009395,4.41162555,90.049,89.998,4.43553367]
[1772634009579,4.41162555,90.049,89.999,4.43553367]
[1772634010472,4.41162555,90.039,89.999,4.43553367]
[1772634010678,4.41162555,90.027,89.99,0.1]
[1772634010983,38.87679388,90.028,89.991,4.43553367]
[1772634011592,44.41728613,90.056,89.991,4.43553367]
[1772634011593,11.10642173,90.038,89.991,4.43553367]
[1772634012096,4.41162555,90.037,89.991,4.43553367]
[1772634012596,4.41162555,90.035,89.99,0.1]
[1772634012794,0.28432314,90.036,89.99,0.1]
[1772634012795,4.41162555,90.029,89.99,0.1]
[1772634013289,11.10691516,90.034,89.991,4.43553367]
[1772634015592,38.86960616,90.045,89.993,4.43553367]
[1772634015782,4.41162555,90.044,89.993,4.43553367]
[1772634017303,4.41162555,90.039,89.993,4.43553367]
[1772634017694,27.76420416,90.044,89.995,4.43553367]
[1772634018284,11.10506502,90.049,89.995,4.43553367]
[1772634018602,4.18043171,90.048,89.995,4.43553367]
[1772634018994,11.10506502,90.049,89.995,4.43553367]
[1772634019389,11.10506502,90.049,89.994,38.89148165]
[1772634019390,11.10506502,90.049,90.001,4.37535884]
[1772634019990,4.18043171,90.057,90.003,4.37535884]
[1772634020193,4.18043171,90.049,90.003,4.37535884]
[1772634020593,9.66952027,90.04,90.003,4.37535884]
[1772634020804,4.18043171,90.035,89.99,0.1]
[1772634022809,10.16952027,90.04,89.99,0.1]
[1772634022810,4.26439819,90.033,89.99,0.1]
[1772634023013,4.26439819,90.033,89.99,4.39827827]
[1772634023206,4.26439819,90.009,89.98,1e-08]
[1772634023402,4.54872133,90.029,89.981,11.11345728]
[1772634023601,4.26439819,90.019,89.98,1e-08]
[1772634023803,4.26439819,90.009,89.98,1e-08]
[1772634024008,4.26439819,89.999,89.98,1e-08]
[1772634024915,4.26439819,89.997,89.98,1e-08]
[1772634027088,4.26439819,89.989,89.936,4.29827827]
[1772634027299,4.2217542,89.992,89.937,4.29827827]
[1772634027495,11.11160496,89.996,89.945,4.29827827]
[1772634027693,11.11160496,89.996,89.951,4.29827827]
[1772634028394,11.11037041,90.006,89.951,4.29827827]
[1772634028708,11.11037041,90.006,89.936,94.51162622]
[1772634028709,11.10777877,90.027,89.969,4.29827827]
[1772634029012,11.10531167,90.047,89.994,0.28432314]
[1772634029212,11.10531167,90.047,90.001,4.29827827]
[1772634029593,4.2217542,90.046,90.001,4.29827827]
[1772634029799,4.2217542,90.044,90.001,4.29827827]
[1772634029994,4.2217542,90.039,89.985,4.29827827]
[1772634030394,4.2217542,90.029,89.985,4.29827827]
[1772634030600,4.2217542,90.039,89.985,4.29827827]
[1772634030913,0.28432314,90.036,89.985,4.29827827]
[1772634031094,4.2217542,90.029,89.985,4.29827827]
[1772634031295,4.2217542,90.019,89.964,4.29827827]
[1772634031926,4.50607734,90.029,89.964,4.29827827]
[1772634032426,4.2217542,90.029,89.97,4.29827827]
[1772634032593,38.87333954,90.036,89.98,4.29827827]
[1772634032792,13.36335429,90.05,89.935,4.80574818]
[1772634032793,11.10555833,90.045,89.99,4.29827827]
[1772634032998,11.10506502,90.049,89.992,4.29827827]
[1772634033198,11.10506502,90.049,90.0,4.29827827]
[1772634034411,4.2217542,90.048,90.0,4.29827827]
[1772634035317,4.2217542,90.039,90.002,4.29827827]
[1772634035515,4.2217542,90.039,89.95,44.46908337]
[1772634035516,9.66952027,90.03,89.99,4.29827827]
[1772634035722,4.2217542,90.019,89.97,4.29827827]
[1772634035919,4.2217542,90.009,89.97,4.29827827]
[1772634036114,9.66952027,90.0,89.956,4.29827827]
[1772634036611,4.2217542,90.002,89.956,4.29827827]
[1772634036933,4.2217542,90.028,89.958,3.69383402]
[1772634037112,4.50607734,90.039,89.966,0.28432314]
[1772634037316,4.2217542,90.035,89.972,4.29827827]
[1772634037535,38.87247606,90.038,89.98,4.29827827]
[1772634038114,44.39654407,90.098,89.99,4.29827827]
[1772634038115,11.10594264,90.042,89.99,4.29827827]
[1772634038315,11.10594264,90.042,90.0,4.29827827]
[1772634038629,4.2217542,90.039,90.0,4.29827827]
[1772634039428,11.10642173,90.038,90.002,4.29827827]
[1772634039726,38.87247606,90.038,90.002,4.29827827]
[1772634039927,4.2217542,90.037,90.002,4.29827827]
[1772634040120,4.2217542,90.037,89.943,44.47244886]
[1772634040121,4.2217542,90.029,89.981,4.29827827]
[1772634040432,11.10642173,90.038,89.991,4.29827827]
[1772634041222,11.10358534,90.061,89.997,4.29827827]
[1772634041440,11.10383193,90.059,90.003,4.29827827]
[1772634041609,38.86341176,90.059,90.003,4.29827827]
[1772634041813,4.2217542,90.058,90.003,4.29827827]
[1772634042931,9.66952027,90.04,90.003,4.29827827]
[1772634043512,38.87204433,90.039,90.003,4.29827827]
[1772634044825,9.66952027,90.03,89.99,4.29827827]
[1772634045141,4.2217542,90.038,89.99,4.29827827]
[1772634045525,4.2217542,90.029,89.992,4.29827827]
[1772634045727,4.2217542,90.029,89.991,38.89277816]
[1772634045728,11.10506502,90.049,90.0,4.29827827]
[1772634047135,38.86772757,90.049,90.0,4.29827827]
[1772634047435,4.2217542,90.048,90.0,4.29827827]
[1772634047643,38.86859084,90.047,90.002,4.29827827]
[1772634048633,4.2217542,90.068,90.01,4.06642364]
[1772634048824,4.2217542,90.067,90.01,4.06642364]
[1772634049014,9.66952027,90.06,90.01,4.06642364]
[1772634049211,27.75707665,90.068,90.01,4.06642364]
[1772634049212,4.2217542,90.049,90.01,4.06642364]
[1772634049632,43.08991339,90.048,90.01,4.06642364]
[1772634049934,38.86815919,90.048,90.012,4.06642364]
[1772634050234,11.10518834,90.048,90.012,4.06642364]
[1772634050820,38.86815919,90.048,90.012,4.06642364]
[1772634051025,4.2217542,90.047,90.012,4.06642364]
[1772634051236,38.86815919,90.048,90.012,4.06642364]
[1772634051621,43.08991339,90.048,90.012,4.06642364]
[1772634052137,38.86815919,90.048,90.014,4.06642364]
[1772634052854,11.10407852,90.057,90.014,4.06642364]
[1772634053143,27.76013284,90.058,90.014,4.06642364]
[1772634053144,4.2217542,90.074,90.014,4.06642364]
[1772634054314,43.07912543,90.073,90.016,4.06642364]
[1772634055033,43.07912543,90.073,90.02,4.06642364]
[1772634055233,43.07912543,90.073,90.022,4.06642364]
[1772634055438,4.2217542,90.069,90.022,4.06642364]
[1772634055619,4.2217542,90.069,90.021,38.87981692]
[1772634055620,4.2217542,90.059,90.012,4.06642364]
[1772634055820,9.66952027,90.05,90.012,4.06642364]
[1772634056019,9.66952027,90.05,90.006,11.1103241]
[1772634056020,4.2217542,90.049,90.006,11.1103241]
[1772634056938,4.2217542,90.049,90.006,15.17674774]
[1772634057141,4.2217542,90.049,90.007,4.06642364]
[1772634057847,9.66952027,90.05,89.968,1.11150631]
[1772634057848,4.2217542,90.047,90.009,4.06642364]
[1772634059038,38.86902248,90.046,90.009,4.06642364]
[1772634060135,9.66952027,90.03,89.987,4.06642364]
[1772634060520,11.10407852,90.057,90.005,4.06642364]
[1772634060728,11.10407852,90.057,90.011,4.06642364]
[1772634060936,11.10272238,90.068,90.017,4.06642364]
[1772634061143,11.10272238,90.068,90.021,4.06642364]
[1772634061961,9.66952027,90.05,90.004,4.06642364]
[1772634062247,4.2217542,90.039,90.004,4.06642364]
[1772634062623,9.69440481,90.06,90.006,4.06642364]
[1772634062819,9.69440481,90.06,89.995,11.11172842]
[1772634062820,11.10161306,90.077,90.019,0.28432314]
[1772634063141,4.2217542,90.079,90.026,4.06642364]
[1772634064241,38.85521435,90.078,90.028,4.06642364]
[1772634065046,43.07696855,90.078,90.028,4.06642364]
[1772634065348,43.07696855,90.078,90.03,4.06642364]
[1772634066533,43.07696855,90.078,90.032,4.06642364]
[1772634067126,11.10148981,90.078,90.032,4.06642364]
[1772634068327,4.2217542,90.087,90.034,4.06642364]
[1772634069646,4.2217542,90.079,90.034,4.06642364]
[1772634070442,38.85521435,90.078,90.036,4.06642364]
[1772634070740,4.2217542,90.059,90.019,4.06642364]
[1772634070941,38.85521435,90.078,89.98,12.20784051]
[1772634070942,4.2217542,90.049,90.009,4.06642364]
[1772634072348,9.69440481,90.04,90.009,4.06642364]
[1772634072528,38.87204433,90.039,90.009,4.06642364]
[1772634072728,38.87204433,90.039,90.0,4.06642364]
[1772634073029,38.87204433,90.039,89.969,3.69383402]
[1772634073030,4.2217542,90.019,89.976,4.06642364]
[1772634074627,38.88111266,90.018,89.976,4.06642364]
[1772634075037,38.88111266,90.018,89.978,4.06642364]
[1772634075249,4.2217542,90.017,89.978,4.06642364]
[1772634075440,9.69440481,90.01,89.978,4.06642364]
[1772634076057,9.69440481,90.0,89.965,4.06642364]
[1772634076435,4.2217542,90.009,89.967,4.06642364]
[1772634076954,9.69440481,90.0,89.967,4.06642364]
[1772634077543,4.2217542,90.007,89.967,4.06642364]
[1772634078261,9.69440481,90.0,89.967,4.06642364]
[1772634078433,4.2217542,89.999,89.957,4.07756204]
[1772634079259,4.2217542,89.997,89.958,11.11629871]
[1772634079550,4.2217542,89.997,89.958,4.07756204]
[1772634079751,4.2217542,89.989,89.954,11.11676504]
[1772634080056,4.2217542,89.989,89.955,4.07756204]
[1772634080555,11.11135803,89.998,89.955,4.07756204]
[1772634080755,38.8897531,89.998,89.955,4.07756204]
[1772634080936,43.1115073,89.998,89.955,4.07756204]
[1772634081137,4.2217542,89.997,89.955,4.07756204]
[1772634081338,11.11160496,89.996,89.957,4.07756204]
[1772634081959,11.11037041,90.006,89.957,4.07756204]
[1772634082255,4.2217542,90.005,89.957,4.07756204]
[1772634082438,9.69440481,90.0,89.957,4.07756204]
[1772634082639,4.2217542,89.999,89.957,4.07756204]
[1772634083768,4.2217542,89.997,89.957,4.07756204]
[1772634083944,13.91615901,89.99,89.957,4.07756204]
[1772634084148,4.2217542,89.99,89.957,4.07756204]
[1772634085243,4.2217542,89.989,89.953,11.11688635]
[1772634085451,4.2217542,89.989,89.93,0.1]
[1772634085452,4.2217542,89.969,89.936,4.4996006]
[1772634085955,9.69440481,89.97,89.936,4.4996006]
[1772634085956,4.2217542,89.967,89.936,4.4996006]
[1772634086155,4.2217542,89.967,89.93,0.1]
[1772634086358,9.69440481,89.96,89.93,0.1]
[1772634087041,9.69440481,89.96,89.93,4.5996006]
[1772634087466,11.11395134,89.977,89.932,4.4996006]
[1772634087853,38.89417861,89.988,89.934,4.4996006]
[1772634088049,4.2217542,89.979,89.934,4.4996006]
[1772634088249,4.2217542,89.959,89.93,0.1]
[1772634089266,4.2217542,89.983,89.932,4.4996006]
[1772634089568,11.11259279,89.988,89.94,4.4996006]
[1772634089751,4.2217542,89.987,89.94,4.4996006]
[1772634089950,9.69440481,89.97,89.932,4.4996006]
[1772634090466,4.2217542,89.979,89.932,4.4996006]
[1772634090662,9.69440481,89.97,89.932,4.4996006]
[1772634090861,3.69383402,89.981,89.933,4.4996006]
[1772634091159,13.91615901,89.98,89.933,4.4996006]
[1772634092167,11.1137043,89.979,89.935,4.4996006]
[1772634092756,15.33311223,89.998,89.941,4.4996006]
[1772634092961,38.8897531,89.998,89.941,4.4996006]
[1772634094162,43.1115073,89.998,89.943,4.4996006]
[1772634095143,11.11135803,89.998,89.945,4.4996006]
[1772634095362,11.11037041,90.006,89.961,4.4996006]
[1772634096165,11.10888933,90.018,89.973,4.4996006]
[1772634097770,11.10888933,90.018,89.972,38.90099141]
[1772634097771,4.2217542,90.029,89.975,4.4996006]
[1772634097949,4.2217542,90.029,89.974,0.28432314]
[1772634097950,11.10765539,90.028,89.981,4.4996006]
[1772634098272,11.10765539,90.028,89.98,0.28432314]
[1772634098273,15.32817593,90.038,89.983,4.4996006]
[1772634098568,4.2217542,90.029,89.983,4.4996006]
[1772634098864,4.2217542,90.019,89.983,4.4996006]
[1772634099071,4.2217542,90.019,89.975,15.6137126]
[1772634099470,4.2217542,90.009,89.97,11.11469839]
[1772634099673,94.40458472,90.038,89.826,27.78957369]
[1772634099674,4.2217542,89.989,89.952,4.4996006]
[1772634100270,11.11259279,89.988,89.954,4.4996006]
[1772634100469,11.11148149,89.997,89.954,4.4996006]
[1772634100773,4.2217542,90.029,89.96,4.4996006]
[1772634100951,4.2217542,90.019,89.97,4.4996006]
[1772634101151,11.10568166,90.044,89.953,38.90920814]
[1772634101152,4.2217542,89.989,89.957,4.4996006]
[1772634102374,4.82477569,90.037,89.948,15.61703446]
[1772634102375,9.69440481,89.98,89.948,15.61703446]
[1772634102560,4.2217542,89.979,89.948,15.61703446]
[1772634102947,4.2217542,89.979,89.93,0.1]
[1772634102948,4.2217542,89.979,89.937,4.4996006]
[1772634103954,43.11582896,89.988,89.937,4.4996006]
[1772634104155,4.2217542,89.979,89.937,4.4996006]
[1772634104368,44.4451337,89.999,89.937,4.4996006]
[1772634104369,4.2217542,89.969,89.937,4.4996006]
[1772634104673,4.2217542,89.969,89.938,11.1187707]
[1772634105655,38.89839738,89.978,89.939,4.4996006]
[1772634105656,4.2217542,89.977,89.939,4.4996006]
[1772634106871,11.11407486,89.976,89.941,4.4996006]
[1772634107070,11.11283977,89.986,89.941,4.4996006]
[1772634107377,15.33459397,89.986,89.941,4.4996006]
[1772634107670,11.11283977,89.986,89.941,4.4996006]
[1772634107854,11.11228431,89.991,89.941,4.4996006]
[1772634108056,11.1118519,89.994,89.941,4.4996006]
[1772634108452,11.11136001,89.998,89.951,4.21334073]
[1772634108858,4.17346684,90.003,89.953,4.21334073]
[1772634109258,11.1106173,90.004,89.961,4.21334073]
[1772634109778,15.28408414,90.004,89.961,4.21334073]
[1772634110269,11.10991273,90.01,89.961,4.21334073]
[1772634110470,4.17346684,90.009,89.961,4.21334073]
[1772634110875,4.17346684,89.989,89.943,4.21334073]
[1772634111068,4.17346684,89.989,89.944,4.21334073]
[1772634111763,9.69440481,89.98,89.937,11.11878293]
[1772634112075,9.69440481,89.97,89.935,15.33238375]
[1772634112268,4.17346684,89.969,89.935,15.33238375]
[1772634112872,15.28593614,89.989,89.938,4.21334073]
[1772634113184,4.17346684,89.988,89.938,4.21334073]
[1772634113361,38.89364255,89.989,89.932,4.21334073]
[1772634113362,4.17346684,89.979,89.932,4.21334073]
[1772634113780,11.10987668,90.01,89.935,4.21334073]
[1772634114008,4.17346684,90.024,89.95,0.28432314]
[1772634114175,11.10728526,90.031,89.972,0.28432314]
[1772634114376,11.10728526,90.031,89.981,4.21334073]
[1772634114580,4.17346684,90.029,89.981,4.21334073]
[1772634114964,4.17346684,90.027,89.982,11.11333377]
[1772634115165,4.17346684,90.027,89.983,4.21334073]
[1772634116193,4.17346684,90.019,89.973,11.11440108]
[1772634116366,4.17346684,90.009,89.953,4.21334073]
[1772634116566,4.17346684,89.999,89.953,4.21334073]
[1772634117066,4.17346684,89.989,89.953,4.21334073]
[1772634117266,4.17346684,89.979,89.932,4.21334073]
[1772634119185,9.69440481,90.0,89.934,4.3555023]
[1772634119375,4.17346684,90.001,89.941,0.28432314]
[1772634119571,4.17346684,90.001,89.933,138.99236096]
[1772634119572,4.17346684,90.001,89.95,4.21334073]
[1772634119974,4.17346684,89.999,89.95,4.21334073]
[1772634120180,38.88672851,90.005,89.934,4.21334073]
[1772634120181,4.17346684,89.989,89.934,4.21334073]
[1772634120375,4.17346684,90.0,89.94,4.21334073]
[1772634120574,11.10998839,90.01,89.953,0.28432314]
[1772634120778,11.10998839,90.01,89.96,4.21334073]
[1772634121590,4.17346684,90.009,89.962,4.21334073]
[1772634121989,4.17346684,90.029,89.97,4.21334073]
[1772634122372,4.17346684,90.029,89.975,0.28432314]
[1772634122578,11.10666844,90.036,89.98,4.21334073]
[1772634122773,9.69440481,90.03,89.98,4.21334073]
[1772634122992,4.17346684,90.029,89.98,4.21334073]
[1772634123381,4.17346684,90.019,89.98,4.21334073]
[1772634123580,4.17346684,90.017,89.98,15.32687228]
[1772634123786,38.88111266,90.018,89.981,4.21334073]
[1772634123787,11.10888933,90.018,89.981,4.21334073]
[1772634124389,11.10765539,90.028,89.981,4.21334073]
[1772634124794,11.10629838,90.039,89.981,4.21334073]
[1772634124983,11.10629838,90.039,89.98,38.89748353]
[1772634124984,11.10629838,90.039,89.991,4.21334073]
[1772634125696,4.17346684,90.039,89.993,4.21334073]
[1772634126480,4.17346684,90.048,89.993,4.21334073]
[1772634126880,4.17346684,90.039,89.993,4.21334073]
[1772634127682,11.10642173,90.038,89.995,4.21334073]
[1772634128090,4.17346684,90.029,89.995,4.21334073]
[1772634128602,4.17346684,90.029,89.994,11.1118519]
[1772634128795,4.17346684,90.029,89.995,4.21334073]
[1772634129030,4.17346684,90.037,89.995,4.21334073]
[1772634129206,11.10642173,90.038,89.995,4.21334073]
[1772634129408,4.17346684,90.037,89.995,4.21334073]
[1772634129902,4.17346684,90.037,89.958,9.24996997]
[1772634129903,4.17346684,90.019,89.981,4.21334073]
[1772634130284,9.69318564,90.03,89.981,4.21334073]
[1772634130481,11.1061143,90.041,89.991,4.21334073]
[1772634131785,11.10506502,90.049,89.996,0.28432314]
[1772634131991,11.10506502,90.049,89.994,38.89148165]
[1772634131992,11.10506502,90.049,90.001,4.21334073]
[1772634132191,4.17346684,90.048,90.001,4.21334073]
[1772634133904,4.17346684,90.037,89.991,4.21334073]
[1772634134118,4.17346684,90.019,89.97,4.21334073]
[1772634134799,38.87247606,90.038,89.949,3.69383402]
[1772634134800,4.17346684,89.999,89.95,4.21334073]
[1772634134998,51.57353773,90.037,89.95,4.21334073]
[1772634134999,4.17346684,89.989,89.95,4.21334073]
[1772634136599,4.17346684,89.987,89.95,15.33062476]
[1772634136797,4.17346684,89.987,89.951,4.21334073]
[1772634136996,4.17346684,90.008,89.953,4.21334073]
[1772634137198,11.11024698,90.007,89.961,4.21334073]
[1772634137509,4.17346684,89.999,89.961,4.21334073]
[1772634137709,4.17346684,90.009,89.961,4.21334073]
[1772634137887,11.10976662,90.011,89.961,4.21334073]
[1772634138086,4.17346684,90.009,89.961,4.21334073]
[1772634138316,11.10976662,90.011,89.961,4.21334073]
[1772634138813,11.10976662,90.011,89.95,38.91050248]
[1772634138814,11.10888933,90.018,89.972,0.28432314]
[1772634138989,11.10777877,90.027,89.981,4.16305885]
[1772634140001,4.20723469,90.026,89.981,4.16305885]
[1772634140412,4.20723469,90.037,89.983,4.16305885]
[1772634140722,4.20723469,90.046,89.993,4.16305885]
[1772634140898,9.69318564,90.04,89.993,4.16305885]
[1772634141106,38.8686359,90.047,89.992,11.11209885]
[1772634141107,4.20723469,90.029,89.992,11.11209885]
[1772634142201,4.20723469,90.027,89.956,4.16305885]
[1772634142410,4.20723469,90.009,89.961,4.16305885]
[1772634142909,4.20723469,90.009,89.963,4.40716096]
[1772634143497,15.31730937,90.009,89.963,4.40716096]
[1772634143712,0.05659186,90.008,89.963,4.40716096]
[1772634144094,0.05659186,90.008,89.929,88.95843902]
[1772634144095,4.2217542,89.989,89.953,11.11691661]
[1772634144415,4.2217542,90.008,89.954,4.40716096]
[1772634144614,4.2217542,90.008,89.953,11.11691661]
[1772634144615,4.2217542,90.008,89.96,4.40716096]
[1772634145121,4.2217542,90.006,89.962,4.40716096]
[1772634147020,3.69383402,90.026,89.93,0.1]
[1772634147021,4.2217542,89.989,89.942,4.40716096]
[1772634147605,11.11049386,90.005,89.942,4.40716096]
[1772634147922,11.11049386,90.005,89.939,27.79634512]
[1772634147923,11.11049386,90.005,89.945,0.28432314]
[1772634148224,11.11049386,90.005,89.957,0.28432314]
[1772634148423,4.2217542,90.004,89.958,4.40716096]
[1772634148626,4.2217542,90.024,89.966,4.40716096]
[1772634148807,4.2217542,90.024,89.978,4.40716096]
[1772634149008,11.10827233,90.023,89.98,4.40716096]
[1772634149222,4.2217542,90.022,89.966,4.40716096]
[1772634149421,9.69318564,89.99,89.94,4.40716096]
[1772634149801,4.2217542,89.989,89.94,4.40716096]
[1772634150213,0.28432314,90.014,89.94,4.40716096]
[1772634150506,4.2217542,89.999,89.94,4.40716096]
[1772634150702,4.2217542,89.989,89.94,4.40716096]
[1772634151004,138.85340412,90.023,89.904,44.77253041]
[1772634151005,4.2217542,90.0,89.948,4.40716096]
[1772634151203,9.69318564,90.01,89.952,4.40716096]
[1772634151410,11.10925956,90.015,89.968,4.40716096]
[1772634151605,4.2217542,90.014,89.968,4.40716096]
[1772634152028,11.10925956,90.015,89.968,4.40716096]
[1772634152527,15.33101376,90.015,89.968,4.40716096]
[1772634152827,4.2217542,90.014,89.968,4.40716096]
[1772634153025,11.1095064,90.013,89.969,38.90228856]
[1772634153205,15.3312606,90.013,89.97,4.40716096]
[1772634153531,4.2217542,90.009,89.969,11.11493959]
[1772634154221,38.88327241,90.013,89.97,4.40716096]
[1772634154222,11.1095064,90.013,89.97,4.40716096]
[1772634155317,11.10901274,90.017,89.972,4.40716096]
[1772634156217,11.10901274,90.017,89.944,48.16555658]
[1772634156218,4.2217542,90.009,89.963,4.40716096]
[1772634156736,4.2217542,89.999,89.962,11.11580445]
[1772634157317,11.11135803,89.998,89.959,4.40716096]
[1772634157622,4.2217542,90.014,89.959,4.40716096]
[1772634158333,11.10925956,90.015,89.969,4.40716096]
[1772634160030,4.2217542,90.009,89.971,4.40716096]
[1772634160227,4.2217542,90.009,89.97,11.11481604]
[1772634160535,13.91493984,90.0,89.97,11.11481604]
[1772634160737,4.2217542,90.0,89.97,11.11481604]
[1772634161310,4.2217542,89.999,89.97,11.11481604]
[1772634161710,15.33305401,89.999,89.963,4.40716096]
[1772634162132,4.2217542,89.998,89.963,4.40716096]
[1772634162328,51.57353773,90.015,89.966,0.28432314]
[1772634162535,11.10938298,90.014,89.969,4.40716096]
[1772634162921,11.10892175,90.018,89.979,4.40716096]
[1772634163232,4.2217542,90.04,89.989,4.40716096]
[1772634163835,11.10629838,90.039,89.989,4.40716096]
[1772634164016,38.87204433,90.039,89.991,4.40716096]
[1772634164216,43.09379853,90.039,89.991,4.40716096]
[1772634164629,4.2217542,90.038,89.991,4.40716096]
[1772634165545,4.2217542,90.038,89.999,4.40716096]
[1772634165919,11.10654508,90.037,90.0,11.11111111]
[1772634166120,4.2217542,90.036,90.001,4.40716096]
[1772634166428,9.69318564,90.03,90.0,11.11111111]
[1772634166624,11.10654508,90.037,90.001,4.40716096]
[1772634168235,11.10503532,90.05,90.009,4.40716096]
[1772634168632,15.17243899,90.05,90.009,4.40716096]
[1772634168833,13.76058931,90.04,90.009,4.40716096]
[1772634169037,4.06740367,90.049,90.009,4.40716096]
[1772634169336,4.06740367,90.039,90.002,43.0025853]
[1772634169536,4.06740367,90.039,90.003,4.1145606]
[1772634170239,11.10642173,90.038,90.004,11.1106173]
[1772634171025,9.69318564,90.03,90.003,4.1145606]
[1772634171225,4.06740367,90.037,90.003,4.1145606]
[1772634171443,4.06740367,90.037,89.994,4.1145606]
[1772634172031,11.10642173,90.038,89.998,4.1145606]